Workbook

Sheet calculo
A2: Instalación | B2: Extractores Ventiladores
A3: cliente | B3: Ritrama
A5: Precio kW | D5: ='datos (no manipular esta hoja)'!$B$21 -> 0.08 | F5: Motor kW | I5: ='datos (no manipular esta hoja)'!$G$42 -> 18.5
A6: Frecuencia Alta | D6: ='datos (no manipular esta hoja)'!$D$60 -> 48 | F6: Nominal motor | I6: ='datos (no manipular esta hoja)'!$I$31 -> 50
A7: Frecuencia Baja | D7: ='datos (no manipular esta hoja)'!$E$60 -> 50 | F7: Coef. Motor | I7: ='datos (no manipular esta hoja)'!$K$24 -> 0.75 | K7: =I5*I7 -> 13.875
F8: Cantidad | I8: 14
B10: Alta | C10: 12 | D10: 12 | E10: 12 | F10: 12 | G10: 12 | H10: 12 | I10: 12
B11: Baja | C11: 12 | D11: 12 | E11: 12 | F11: 12 | G11: 12 | H11: 12 | I11: 12
C12: LUNES | D12: MARTES | E12: MIÉRCOLES | F12: JUEVES | G12: VIERNES | H12: SÁBADO | I12: DOMINGO
D15: Semana | E15: Horas Frecuencia Baja | G15: =SUM(C11:I11) -> 84
E16: Horas Frecuencia Alta | G16: =SUM(C10:I10) -> 84
D18: Mes | E18: Horas Frecuencia Baja | G18: =G15*4 -> 336
E19: Horas Frecuencia Alta | G19: =G16*4 -> 336
D21: Año | E21: Horas Frecuencia Baja | G21: =G18*12 -> 4032
E22: Horas Frecuencia Alta | G22: =G19*12 -> 4032
C24: ="Descontar horas Baja (Dias "&K24&")" -> Descontar horas Baja (Dias 0) | G24: 0 | K24: =G24/24 -> 0
C25: ="Descontar Horas Alta, Dias (" & K25 &")" -> Descontar Horas Alta, Dias (0) | G25: 0 | K25: =G25/24 -> 0
D34: Instalación | E34: =$B$2 -> Extractores Ventiladores
D35: Cliente | E35: =$B$3 -> Ritrama
D36: Total horas Baja Frecuencia Año | G36: =G21-G24 -> 4032 | I36: =G36/24 & " Dias" -> 168 Dias
D37: Total horas Alta frecuencia Año | G37: =G22-G25 -> 4032 | I37: =G37/24 & " Dias" -> 168 Dias
D38: Total Horas Trabajando con Variador | G38: =G37+G36 -> 8064 | I38: =G38/24 & " Dias" -> 336 Dias
A40: KW consumidos por el en accionamiento directo (motor sin Variador) | I40: =G36*K7+G37*K7 -> 111888
A41: Coste energético en Euros del consumo del motor sin Variador | I41: =I40*D5 -> 8951.04
A43: ="ALTA - kW consumidos por el motor funcionando a una frecuencia de " & D7 & " hertz a través del variador durante " & I36 -> ALTA - kW consumidos por el motor funcionando a una frecuencia de 50 hertz a través del variador durante 168 Dias | I43: =K43*(D7/I6)^3 -> 55944 | K43: =G36*K7 -> 55944
A44: ="Coste energético en Euros del consumo del Motor a la frecuencia de " & D7 & " Hertz" -> Coste energético en Euros del consumo del Motor a la frecuencia de 50 Hertz | I44: =I43*D5 -> 4475.52
A46: ="BAJA - kW consumjidos por el motor funcionando a una frecuencia de " & D6 & " hertz a través del variador durante " & I37 -> BAJA - kW consumjidos por el motor funcionando a una frecuencia de 48 hertz a través del variador durante 168 Dias | I46: =K46*(D6/I6)^3 -> 49495.67078 | K46: =G37*K7 -> 55944
A47: ="Coste energético en Euros del consumo del Motor a la frecuencia de " & D6 & " Hertz" -> Coste energético en Euros del consumo del Motor a la frecuencia de 48 Hertz | I47: =I46*D5 -> 3959.653663
F48: =I40 -> 111888
F49: =I43 -> 55944
A50: Coste total con Variador | F50: =I46 -> 49495.67078 | I50: =I44+I47 -> 8435.173663
A51: Ahorro Año (Si fuese sólo 1 variador) | I51: =I41-I50 -> 515.8663373
A53: ="Total ahorro en un año por " & I8 & " Variadores Instalados " -> Total ahorro en un año por 14 Variadores Instalados | I53: =I51*I8 -> 7222.128722
A55: Sin Variador Coste
A57: Coste Alta (Variador)
A59: Coste Baja (Variador)

Sheet datos (no manipular esta hoja)
B6: pr kw | D6: frecuencia | G6: kw motor | I6: nom motor | K6: Coef.Motor | M6: Cantidad
B7: 0.08 | D7: 10 | G7: 1.5 | I7: 50 | K7: 0.5 | M7: 1
B8: 0.09 | D8: 11 | G8: 2.2 | I8: 60 | K8: 0.55 | M8: 2
B9: 0.1 | D9: 12 | G9: 3.7 | K9: 0.6 | M9: 3
B10: 0.11 | D10: 13 | G10: 5.5 | K10: 0.65 | M10: 4
B11: 0.12 | D11: 14 | G11: 7.5 | K11: 0.7 | M11: 5
B12: 0.13 | D12: 15 | G12: 11 | K12: 0.75 | M12: 6
B13: 0.14 | D13: 16 | G13: 15 | K13: 0.8 | M13: 7
B14: 0.15 | D14: 17 | G14: 18.5 | K14: 0.85 | M14: 8
B15: 0.16 | D15: 18 | G15: 22 | K15: 0.9 | M15: 9
B16: 0.17 | D16: 19 | G16: 30 | K16: 0.95 | M16: 10
B17: 0.18 | D17: 20 | G17: 37 | K17: 1 | M17: 11
B18: 0.19 | D18: 21 | G18: 45 | M18: 12
D19: 22 | G19: 55 | M19: 13
B20: 1 | D20: 23 | G20: 75 | M20: 14
B21: =INDEX(B7:B18,B20) -> 0.08 | D21: 24 | G21: 90 | M21: 15
D22: 25 | G22: 110 | K22: 6 | M22: 16
D23: 26 | G23: 132 | M23: 17
D24: 27 | G24: 160 | K24: =INDEX(K7:K17,K22) -> 0.75 | M24: 18
D25: 28 | G25: 190 | M25: 19
D26: 29 | G26: 210 | M26: 20
D27: 30 | G27: 232 | M27: 21
D28: 31 | G28: 370 | M28: 22
D29: 32 | G29: 500 | I29: 1 | M29: 23
D30: 33 | M30: 24
D31: 34 | I31: =INDEX(I7:I8,I29) -> 50 | M31: 25
D32: 35 | M32: 26
D33: 36 | M33: 27
D34: 37 | M34: 28
D35: 38 | M35: 29
D36: 39 | M36: 30
D37: 40
D38: 41
D39: 42
D40: 43
D41: 44 | G41: 8
D42: 45 | G42: =INDEX(G7:G29,G41) -> 18.5
D43: 46
D44: 47
D45: 48
D46: 49
D47: 50
D48: 51
D49: 52
D50: 53
D51: 54
D52: 55
D53: 56
D54: 57
D55: 58
D56: 59
D57: 60
D59: 39 | E59: 41
D60: =INDEX(D7:D57,D59) -> 48 | E60: =INDEX(D7:D57,E59) -> 50
